bitfinex-derivatives/quotes_ETHF0:USTF0_20240826
["timestamp","ask_amount","ask_price","bid_price","bid_amount"]
[1724677340414,0.00396534,2723.3,2723.2,0.36712]
[1724677340808,0.00396534,2723.3,2723.2,4.03912]
[1724677342308,0.00396534,2723.3,2723.2,4.41752]
[1724677343713,0.00396534,2723.3,2723.1,0.3886]
[1724677344010,0.00396534,2723.3,2723.0,0.00473596]
[1724677344011,0.37107534,2723.3,2723.0,0.00473596]
[1724677344312,0.37107534,2723.3,2723.2,0.36712]
[1724677344313,0.00396534,2723.3,2723.2,0.36712]
[1724677346313,0.00396534,2723.3,2723.0,0.00473596]
[1724677346314,0.37106534,2723.3,2723.1,0.36712]
[1724677346811,0.37106534,2723.3,2723.1,0.36713]
[1724677347114,0.00396534,2723.3,2723.2,0.36712]
[1724677349017,0.37107534,2723.3,2723.1,0.36712]
[1724677349409,0.36712,2723.2,2723.1,0.36712]
[1724677349606,0.00396534,2723.3,2723.0,0.00473596]
[1724677349818,0.00396534,2723.3,2723.2,0.36712]
[1724677350112,0.37106534,2723.3,2723.0,0.00473596]
[1724677350312,0.00396534,2723.3,2723.2,0.36712]
[1724677351710,0.00396534,2723.3,2723.2,9.95692]
[1724677351910,0.36705,2723.8,2723.6,0.36706]
[1724677352113,0.36705,2723.8,2723.4,0.3570061]
[1724677352521,0.36705,2723.8,2723.6,0.36706]
[1724677352827,0.92032844,2723.8,2723.4,0.7240961]
[1724677353211,0.3781,2723.7,2723.4,0.3570061]
[1724677353408,0.36708,2723.5,2723.4,0.7240861]
[1724677353817,0.3781,2723.7,2723.5,0.36707]
[1724677354117,0.36707,2723.6,2723.4,0.7240861]
[1724677354320,0.3781,2723.7,2723.5,0.36708]
[1724677354622,0.74516,2723.7,2723.5,0.36708]
[1724677354815,0.74516,2723.7,2723.5,0.36707]
[1724677355020,0.36706,2723.6,2723.5,0.36707]
[1724677355414,0.3781,2723.7,2723.5,0.36707]
[1724677355627,0.3781,2723.7,2723.6,0.36706]
[1724677355814,0.36977844,2723.8,2723.7,0.36705]
[1724677356015,0.00272844,2723.8,2723.7,0.36705]
[1724677357225,0.36976844,2723.8,2723.7,0.36705]
[1724677357723,0.00272844,2723.8,2723.7,0.36705]
[1724677359126,0.36976844,2723.8,2723.7,0.36705]
[1724677359327,0.00272844,2723.8,2723.7,0.36705]
[1724677359725,0.00272844,2723.8,2723.7,1.28468]
[1724677360424,0.00272844,2723.8,2723.7,4.95588]
[1724677360727,0.00272844,2723.8,2723.7,5.87351]
[1724677360929,0.00272844,2723.8,2723.7,4.95588]
[1724677362421,0.00272844,2723.8,2723.7,4.03825]
[1724677364125,0.00272844,2723.8,2723.7,0.36705]
[1724677364320,0.36976844,2723.8,2723.7,0.36705]
[1724677364629,0.00272844,2723.8,2723.7,0.36705]
[1724677364821,0.00272844,2723.8,2723.7,4.03825]
[1724677366530,0.36976844,2723.8,2723.7,0.36705]
[1724677366828,0.00272844,2723.8,2723.7,0.36705]
[1724677367637,0.00272844,2723.8,2723.7,1.28468]
[1724677367840,0.00272844,2723.8,2723.7,4.95588]
[1724677368147,0.00272844,2723.8,2723.7,5.87351]
[1724677368328,0.00272844,2723.8,2723.7,10.87351]
[1724677368522,3.57476,2724.4,2724.0,0.91751]
[1724677368829,3.57476,2724.4,2724.2,0.36697]
[1724677368830,0.36697,2724.3,2724.2,0.36697]
[1724677369031,3.57477,2724.4,2724.3,0.36697]
[1724677369238,3.2078,2724.4,2724.3,0.36697]
[1724677369430,3.57938008,2724.4,2724.3,0.36697]
[1724677369636,0.36697,2724.3,2724.2,0.36697]
[1724677373029,0.36697,2724.3,2724.1,0.73919]
[1724677373030,0.36698,2724.2,2724.1,0.73919]
[1724677373236,0.36702,2724.0,2723.9,0.367]
[1724677373730,0.3576,2724.1,2723.9,0.367]
[1724677373942,0.3576,2724.1,2724.0,0.36701]
[1724677374942,0.36699,2724.2,2724.1,0.367]
[1724677376339,3.57002008,2724.4,2723.9,0.91756]
[1724677376530,3.93699008,2724.4,2724.3,0.36697]
[1724677376931,0.36698,2724.3,2724.2,0.36698]
[1724677378428,3.57002008,2724.4,2724.2,0.36698]
[1724677378633,3.93698008,2724.4,2724.3,0.36697]
[1724677379239,0.00462008,2724.4,2724.3,4.9548]
[1724677380045,0.00462008,2724.4,2724.3,5.87223]
[1724677380445,0.00462008,2724.4,2724.3,4.9548]
[1724677380651,0.00462008,2724.4,2724.2,0.74957]
[1724677380837,0.92202008,2724.4,2724.1,3.2078]
[1724677381038,0.36698,2724.2,2724.1,3.5748]
[1724677381346,0.36698,2724.2,2724.1,3.2078]
[1724677381545,0.36698,2724.2,2724.1,3.5748]
[1724677381843,0.36698,2724.2,2724.1,3.2078]
[1724677382046,1.28444,2724.2,2724.1,3.2078]
[1724677382244,0.36698,2724.2,2724.1,3.2078]
[1724677382942,0.73278,2724.3,2724.1,3.2078]
[1724677383147,0.36698,2724.3,2724.2,0.36698]
[1724677384738,1.65112008,2724.4,2724.1,3.2078]
[1724677384937,1.65112008,2724.4,2724.1,3.57478]
[1724677385134,0.36698,2724.2,2724.1,3.57478]
[1724677385549,0.36697,2724.3,2724.2,0.36697]
[1724677386647,0.72338008,2724.4,2724.3,0.36697]
[1724677388445,0.72338008,2724.4,2724.3,4.9548]
[1724677388446,0.00462008,2724.4,2724.3,4.9548]
[1724677388655,0.00462008,2724.4,2724.3,9.04223]
[1724677388837,0.00462008,2724.4,2724.3,11.83648902]
[1724677389236,0.36688,2725.0,2724.9,0.36689]
[1724677389443,0.74008,2725.0,2724.9,0.36689]
[1724677390141,0.3732,2725.0,2724.9,0.36689]
[1724677390343,3.57467,2725.1,2725.0,0.36687]
[1724677390549,0.37153772,2725.1,2725.0,0.3714191]
[1724677390857,0.37153772,2725.1,2725.0,0.0045491]
[1724677391150,1.28869772,2725.1,2725.0,0.0045491]
[1724677391348,10.87545772,2725.1,2725.0,0.0045491]
[1724677391551,5.87545772,2725.1,2725.0,0.0045491]
[1724677391748,10.87545772,2725.1,2725.0,0.0045491]
[1724677393042,2.20135,2724.9,2724.8,0.0055061]
[1724677393437,10.87095,2724.9,2724.8,0.0055061]
[1724677393651,11.22225,2724.9,2724.8,0.0055061]
[1724677393845,11.22225,2724.9,2724.8,0.01002412]
[1724677396142,0.36689,2724.9,2724.8,0.01002412]
[1724677396354,0.00466772,2725.1,2725.0,0.36687]
[1724677396852,0.00466772,2725.1,2725.0,1.28406]
[1724677397052,0.00466772,2725.1,2725.0,1.65396]
[1724677397548,0.00466772,2725.1,2725.0,5.32356]
[1724677399252,0.00466772,2725.1,2725.0,7.57637]
[1724677399563,0.75121,2725.5,2725.3,0.36683]
[1724677399860,0.3844,2725.5,2725.4,0.36682]
[1724677400053,0.3844,2725.5,2725.3,0.36682]
[1724677400247,0.3844,2725.5,2725.4,0.36682]
[1724677400446,0.00367631,2725.5,2725.4,0.36682]
[1724677400652,0.00367631,2725.5,2725.4,0.73432]
[1724677401362,0.37048631,2725.5,2725.3,0.36683]
[1724677401546,0.37048631,2725.5,2725.1,3.2078]
[1724677401547,3.67247631,2725.5,2725.1,3.2078]
[1724677401752,3.67247631,2725.5,2725.1,3.57465]
[1724677401753,0.3842,2725.4,2725.1,3.57465]
[1724677401960,0.36684,2725.3,2725.1,3.57465]
[1724677402153,0.74584,2725.3,2725.1,3.57465]
[1724677402356,0.36685,2725.2,2724.8,1.33646744]
[1724677402553,0.3838,2725.2,2724.8,0.01002412]
[1724677402859,0.36689,2724.9,2724.8,0.01002412]
[1724677403052,1.28412,2724.9,2724.8,0.01002412]
[1724677403249,4.42069,2724.9,2724.8,0.01002412]
[1724677403461,5.33792,2724.9,2724.8,0.01002412]
[1724677404451,0.36696,2724.4,2724.2,0.36698]
[1724677404656,0.3826,2724.8,2724.2,0.36698]
[1724677404865,0.36696,2724.4,2724.2,0.36698]
[1724677405565,0.36695,2724.5,2724.3,0.36697]
[1724677405759,0.0055061,2724.6,2724.4,0.36695]
[1724677405948,0.3724461,2724.6,2724.5,0.36694]
[1724677406359,0.36694,2724.5,2724.4,0.36695]
[1724677406565,0.3724461,2724.6,2724.4,0.36695]
[1724677406859,0.3724461,2724.6,2724.5,0.36694]
[1724677407754,0.3724461,2724.6,2724.4,0.36695]
[1724677407954,0.3724461,2724.6,2724.5,0.36694]
[1724677410052,0.3724461,2724.6,2724.4,0.36695]
[1724677410053,0.36694,2724.5,2724.4,0.36695]
[1724677410854,0.0055061,2724.6,2724.2,0.00259146]
[1724677410855,0.36696,2724.4,2724.3,0.36696]
[1724677414470,0.36695,2724.5,2724.4,0.36695]
[1724677414770,0.36697,2724.4,2724.3,0.36697]
[1724677415467,0.36697,2724.3,2724.2,0.36956146]
[1724677416668,1.2844,2724.3,2724.2,0.00259146]
[1724677417374,1.6674,2724.3,2724.2,0.00259146]
[1724677421158,0.36696,2724.4,2724.3,0.36696]
[1724677421759,0.36695,2724.5,2724.4,0.36695]
[1724677422164,0.36696,2724.4,2724.3,0.36696]
[1724677422365,0.36697,2724.3,2724.2,0.74326146]
[1724677422974,0.36696,2724.4,2724.3,0.36696]
[1724677423572,0.0055061,2724.6,2724.5,0.36694]
[1724677424178,3.2078,2724.8,2724.7,0.36692]
[1724677424478,4.187,2725.0,2724.9,0.36689]
[1724677424684,0.36687,2725.1,2724.7,0.36692]
[1724677424685,0.36687,2725.1,2725.0,0.36687]
[1724677425361,0.36687,2725.1,2724.8,0.7522]
[1724677425362,0.36689,2725.0,2724.9,0.36688]
[1724677426168,0.36688,2725.1,2725.0,0.36687]
[1724677426373,0.36688,2725.0,2724.9,0.36688]
[1724677427379,0.36689,2724.9,2724.8,1.11909]
[1724677427575,0.36689,2724.9,2724.8,0.3657]
[1724677427780,0.36692,2724.7,2724.6,0.36691]
[1724677428080,0.36693,2724.6,2724.5,0.71884]
[1724677428876,0.91735,2724.6,2724.3,1.67880332]
[1724677429075,0.91735,2724.6,2724.4,0.36695]
[1724677429076,0.36695,2724.5,2724.4,0.36695]
[1724677429588,0.36696,2724.4,2724.3,0.3529]
[1724677429790,0.36697,2724.3,2724.2,0.00259146]
[1724677430782,1.2844,2724.3,2724.2,0.00259146]
[1724677431179,0.36692,2724.7,2724.2,6.84299146]
[1724677431379,7.3948,2725.1,2724.3,0.91743]
[1724677431380,0.91723,2724.9,2724.3,0.91743]
[1724677431581,0.36691,2724.8,2724.7,0.36691]
[1724677434582,0.3669,2724.9,2724.7,0.36691]
[1724677434975,1.3056,2725.0,2724.7,0.36691]
[1724677435170,1.3056,2725.0,2724.6,0.3885]
[1724677435171,0.36692,2724.7,2724.6,0.75542]
[1724677435379,0.36691,2724.8,2724.6,0.75542]
[1724677435580,0.36691,2724.8,2724.7,0.36692]
[1724677437488,0.3884,2725.0,2724.9,0.36689]
[1724677438283,3.57466,2725.2,2724.8,0.91725]
[1724677438485,3.57466,2725.2,2725.1,0.36686]
[1724677438790,3.92614,2725.3,2725.2,0.36685]
[1724677438982,0.71834,2725.3,2725.2,0.36685]
[1724677440485,0.71834,2725.3,2724.8,0.95894332]
[1724677440486,0.91713,2725.2,2724.8,0.95894332]
[1724677440688,0.91713,2725.2,2724.7,1.43728763]
[1724677440689,0.36691,2724.8,2724.7,0.36691]
[1724677440995,0.36692,2724.7,2724.6,0.7743]
[1724677441191,0.72022,2724.7,2724.6,0.7743]
[1724677441581,0.72022,2724.7,2724.6,1.14123]
[1724677442890,0.72022,2724.7,2724.6,0.7743]
[1724677443292,0.36694,2724.5,2724.4,3.57475]
[1724677443889,0.3533,2724.7,2724.3,0.95894332]
[1724677444385,0.72023,2724.7,2724.4,0.36695]
[1724677444586,3.2078,2724.9,2724.7,0.36691]
[1724677444781,0.3561,2725.0,2724.4,3.17]
[1724677445094,0.72298,2725.0,2724.8,0.36689]
[1724677446786,0.36689,2724.9,2724.7,0.74251]
[1724677447890,0.36689,2724.9,2724.8,0.3669]
[1724677448083,0.72298,2725.0,2724.8,0.3669]
[1724677448298,0.36684,2725.3,2724.8,3.17]
[1724677448601,0.00367631,2725.5,2725.4,0.36682]
[1724677448905,4.187,2726.0,2725.4,9.63250027]
[1724677449090,4.187,2726.0,2725.7,3.17]
[1724677449290,4.187,2726.0,2725.8,0.73466]
[1724677449783,4.19098247,2726.0,2725.8,0.73466]
[1724677450187,4.19098247,2726.0,2725.8,0.3679]
[1724677450600,4.19098247,2726.0,2725.8,0.73466]
[1724677451196,4.19098247,2726.0,2725.8,0.3679]
[1724677451497,4.19098247,2726.0,2725.6,0.0055061]
[1724677451792,0.36677,2725.8,2725.6,0.0055061]
[1724677453200,0.73978,2725.7,2725.6,0.0055061]
[1724677454994,0.373,2725.7,2725.6,0.0055061]
[1724677456092,0.373,2725.7,2725.6,0.3900061]
[1724677456290,0.73978,2725.7,2725.6,0.3900061]
[1724677456588,0.373,2725.7,2725.6,0.3900061]
[1724677457303,0.75476,2725.9,2725.7,0.36678]
[1724677457887,0.75476,2725.9,2725.6,0.3900061]
[1724677457888,0.388,2725.9,2725.6,0.3900061]
[1724677458100,0.36678,2725.8,2725.6,0.3900061]
[1724677458299,0.36678,2725.7,2725.6,0.3900061]
[1724677459194,0.36678,2725.8,2725.6,0.7567961]
[1724677459493,0.36678,2725.7,2725.6,0.3900061]
[1724677459797,1.29714247,2726.0,2725.6,0.3900061]
[1724677459995,0.36677,2725.8,2725.6,0.7567961]
[1724677460197,0.36678,2725.7,2725.6,0.7567961]
[1724677460406,0.36678,2725.7,2725.6,0.0055061]
[1724677462099,0.36678,2725.7,2725.6,0.3722961]
[1724677462300,0.36677,2725.8,2725.7,0.36678]
[1724677462491,1.29714247,2726.0,2725.6,0.0055061]
[1724677462492,0.74702247,2726.0,2725.6,0.0055061]
[1724677462697,0.74702247,2726.0,2725.9,0.36675]
[1724677464017,0.36675,2725.9,2725.8,0.36676]
[1724677464199,0.74703247,2726.0,2725.9,0.36675]
[1724677464394,0.37073247,2726.0,2725.9,0.36675]
[1724677465010,0.36676,2725.9,2725.8,0.36676]
[1724677465692,0.00398247,2726.0,2725.7,0.3562]
[1724677465693,0.36677,2725.8,2725.7,0.3562]
[1724677467608,0.36677,2725.8,2725.7,0.72298]
[1724677468408,0.00398247,2726.0,2725.8,0.36676]
[1724677468409,0.36676,2725.9,2725.8,0.36676]
[1724677468611,0.36677,2725.8,2725.7,0.72297]
[1724677469110,0.36677,2725.8,2725.7,4.39177]
[1724677469307,0.36676,2725.9,2725.8,0.36676]
[1724677470003,0.36676,2725.9,2725.8,0.73136]
[1724677470510,0.36676,2725.9,2725.8,0.3646]
[1724677471207,0.36678,2725.7,2725.6,0.3722961]
[1724677471807,0.36678,2725.7,2725.6,0.0055061]
[1724677472006,1.28374,2725.7,2725.6,0.0055061]
[1724677472317,1.64454,2725.7,2725.6,0.0055061]
[1724677474200,9.4381,2725.7,2725.6,0.0055061]
[1724677474406,0.36687,2725.0,2724.9,0.7306]
[1724677474715,0.36687,2725.1,2724.9,1.09748]
[1724677475212,0.36687,2725.0,2724.9,0.7306]
[1724677475606,0.7599,2725.2,2724.7,0.0055061]
[1724677475802,0.3669,2724.8,2724.7,0.0055061]
[1724677477209,0.3861,2725.1,2724.7,0.3724261]
[1724677477210,0.3669,2724.9,2724.7,0.3724261]
[1724677477901,0.3861,2725.1,2724.9,0.36688]
[1724677478102,0.36687,2725.1,2724.9,0.36688]
[1724677478312,0.36687,2725.1,2725.0,0.3626]
[1724677479317,0.36687,2725.1,2725.0,0.72947]
[1724677479513,1.12676,2725.2,2725.1,0.36686]
[1724677479715,1.12676,2725.2,2725.0,0.3626]
[1724677479716,0.36686,2725.1,2725.0,0.72947]
[1724677481921,0.36686,2725.1,2725.0,0.3626]
[1724677482113,1.65862,2725.1,2725.0,0.3626]
[1724677482411,0.3669,2724.8,2724.7,0.0055061]
[1724677483313,1.28416,2724.8,2724.7,0.0055061]
[1724677484218,2.20142,2724.8,2724.7,0.0055061]
[1724677485513,4.95456,2724.8,2724.7,0.0055061]
[1724677486814,9.95456,2724.8,2724.7,0.0055061]
[1724677488011,3.9463,2724.9,2724.8,0.3669]
[1724677488208,3.5747,2724.9,2724.8,0.3669]
[1724677488408,0.3669,2724.8,2724.7,0.3724161]
[1724677489015,0.3669,2724.8,2724.7,0.7478161]
[1724677489721,0.3669,2724.8,2724.7,0.3809061]
[1724677489923,1.28416,2724.8,2724.7,0.0055061]
[1724677490917,0.36697,2724.3,2724.2,0.37069146]
[1724677491120,0.36697,2724.3,2724.2,0.73767146]
[1724677491822,0.36697,2724.3,2724.2,0.37069146]
[1724677492023,0.36697,2724.3,2724.2,0.73767146]
[1724677492318,0.73667,2724.3,2724.2,0.00259146]
[1724677493325,1.6541,2724.3,2724.2,0.00259146]
[1724677494119,0.73667,2724.3,2724.2,0.36957146]
[1724677494818,0.3724561,2724.5,2724.4,0.36696]
[1724677495023,0.0055061,2724.5,2724.4,0.36696]
[1724677495215,0.0055061,2724.5,2724.4,4.95476]
[1724677495523,0.0055061,2724.5,2724.4,4.03736]
[1724677495722,0.0055061,2724.5,2724.4,4.78556]
[1724677497731,0.3724461,2724.5,2724.4,4.78556]
[1724677498026,0.3724461,2724.5,2724.4,0.72716]
[1724677499532,0.7476461,2724.5,2724.4,0.72716]
[1724677500030,0.3724461,2724.5,2724.4,0.72716]
[1724677501919,0.3724461,2724.5,2724.4,1.64456]
[1724677501920,0.0055061,2724.5,2724.4,1.64456]
[1724677502526,0.0055061,2724.5,2724.4,5.31496]
[1724677502825,0.36687,2725.1,2725.0,0.36687]
[1724677503731,3.5993061,2725.3,2724.8,0.7124]
[1724677503921,0.0055061,2725.3,2725.2,0.36685]
[1724677504323,0.0055061,2725.3,2725.2,4.03645]
[1724677505832,3.57456,2725.9,2725.7,0.36678]
[1724677506128,0.36676,2725.9,2725.8,0.3833]
[1724677507817,0.36676,2725.9,2725.8,0.75007]
[1724677508022,0.36676,2725.9,2725.8,0.3833]
[1724677511332,0.36676,2725.9,2725.8,0.75007]
[1724677511534,0.91672,2726.5,2725.8,7.2599]
[1724677511726,0.3732,2726.5,2726.2,0.3667]
[1724677511930,0.3732,2726.5,2725.9,0.7471]
[1724677511931,0.36669,2726.4,2725.9,0.7471]
[1724677512131,0.36669,2726.4,2726.3,0.3667]
[1724677512630,0.37126675,2726.4,2726.3,0.37025099]
[1724677512833,3.2078,2726.6,2726.5,0.36667]
[1724677513033,0.36662,2726.9,2726.4,8.49292]
[1724677513222,4.187,2727.1,2726.9,0.36662]
[1724677513223,0.36661,2727.0,2726.9,0.36662]
[1724677513529,3.2078,2727.2,2726.9,0.36662]
[1724677513923,0.00296015,2727.2,2726.7,3.17]
[1724677514323,0.00296015,2727.2,2727.1,0.36659]
[1724677514735,0.00296015,2727.2,2727.1,4.03379]
[1724677514928,0.36954015,2727.2,2727.1,4.03379]
[1724677515120,0.36954015,2727.2,2727.1,3.6672]
[1724677515534,0.36954015,2727.2,2727.1,4.38699]
[1724677515737,0.36954015,2727.2,2727.1,4.0204]
[1724677515929,0.00296015,2727.2,2727.1,4.38699]
[1724677516530,0.36954015,2727.2,2727.1,4.38699]
[1724677516851,0.36954015,2727.2,2727.1,7.55699]
[1724677516852,0.00296015,2727.2,2727.1,7.55699]
[1724677517426,1.2965,2728.0,2727.6,0.36652]
[1724677517640,0.3665,2727.8,2727.6,0.36652]
[1724677518026,0.36649,2727.9,2727.6,0.36652]
[1724677518223,0.3803,2728.0,2727.5,0.3569061]
[1724677518428,0.3803,2728.0,2727.7,0.3665]
[1724677518429,0.75073012,2728.0,2727.7,0.3665]
[1724677518834,0.36649,2727.9,2727.7,0.3665]
[1724677519034,0.36652,2727.6,2727.5,0.3569061]
[1724677519230,0.36652,2727.7,2727.5,0.3569061]
[1724677519436,0.36652,2727.6,2727.5,0.3569061]
[1724677520134,0.36652,2727.7,2727.5,0.7234461]
[1724677521332,0.36652,2727.6,2727.5,0.3569061]
[1724677521534,0.36652,2727.7,2727.5,0.3569061]
[1724677521732,0.75073012,2728.0,2727.5,0.3569061]
[1724677521937,0.38425012,2728.0,2727.9,0.36648]
[1724677522134,0.75072012,2728.0,2727.9,0.36648]
[1724677522329,0.00395012,2728.0,2727.9,0.36648]
[1724677522528,0.00395012,2728.0,2727.9,4.03208]
[1724677522729,6.977,2728.5,2727.9,4.03208]
[1724677522730,0.3664,2728.6,2727.9,15.7828779]
[1724677522938,0.3664,2728.6,2728.2,3.2078]
[1724677523141,0.3664,2728.6,2728.4,0.36641]
[1724677523433,0.3664,2728.5,2728.3,4.45477303]
[1724677523638,0.91592,2728.8,2728.3,4.45477303]
[1724677523639,0.36642,2728.4,2728.3,4.45477303]
[1724677523837,0.36643,2728.3,2728.2,3.2078]
[1724677524143,0.36643,2728.3,2728.2,3.21049025]
[1724677524944,1.28251,2728.3,2728.2,3.21049025]
[1724677526139,4.94811,2728.3,2728.2,3.21049025]
[1724677526642,1.28251,2728.3,2728.2,0.00269025]
[1724677526839,5.86419,2728.3,2728.2,0.00269025]
[1724677527041,0.36651,2727.7,2727.6,0.3511]
[1724677527244,0.36652,2727.6,2727.5,0.0055061]
[1724677527444,4.5583,2728.2,2727.5,0.0055061]
[1724677527445,0.73,2727.8,2727.5,0.0055061]
[1724677527637,5.47443,2728.2,2727.8,0.36649]
[1724677527836,0.36646,2728.1,2727.9,0.36647]
[1724677528043,0.36646,2728.1,2728.0,0.36647]
[1724677528945,4.5583,2728.2,2728.1,0.36646]
[1724677529343,4.187,2728.2,2728.1,0.36646]
[1724677530848,4.55344,2728.2,2728.1,0.36646]
[1724677531347,4.187,2728.2,2728.1,0.36646]
[1724677531558,4.55344,2728.2,2728.1,0.36646]
[1724677532148,0.36647,2728.0,2727.9,0.37033671]
[1724677533138,0.36646,2728.2,2728.1,0.36646]
[1724677533340,0.36646,2728.1,2728.0,0.36646]
[1724677533941,0.3514,2728.3,2727.9,0.00386671]
[1724677534243,0.36643,2728.3,2728.2,0.36644]
[1724677535255,0.36644,2728.3,2728.2,0.36644]
[1724677535549,0.00429592,2728.4,2728.3,0.36643]
[1724677535550,0.37071592,2728.4,2728.3,0.36643]
[1724677537248,0.37071592,2728.4,2728.0,0.91617]
[1724677537249,0.91608,2728.3,2728.0,0.36647]
[1724677537449,0.36646,2728.1,2728.0,0.36647]
[1724677537754,0.00429592,2728.4,2728.3,0.36643]
[1724677537954,0.37071592,2728.4,2728.3,0.36643]
[1724677538351,0.36645,2728.2,2727.9,3.21166671]
[1724677538654,0.00429592,2728.4,2728.1,0.36645]
[1724677538853,0.36643,2728.3,2728.2,0.36643]
[1724677539256,0.36644,2728.2,2728.1,0.36645]
[1724677539640,0.36646,2728.1,2728.0,0.36647]
[1724677539847,0.36646,2728.1,2728.0,4.03207]
[1724677540344,0.36644,2728.3,2728.2,0.36643]
[1724677540545,0.37072592,2728.4,2728.3,0.36643]
[1724677540753,0.00429592,2728.4,2728.3,0.36643]
[1724677540944,0.00429592,2728.4,2728.3,0.74993]
[1724677541142,0.00429592,2728.4,2728.3,1.10463]
[1724677541453,0.00429592,2728.4,2728.3,4.77023]
[1724677542750,0.37071592,2728.4,2728.3,4.77023]
[1724677542952,0.37071592,2728.4,2728.3,4.4038]
[1724677543142,0.37071592,2728.4,2728.3,0.7382]
[1724677543347,0.37071592,2728.4,2728.3,1.10463]
[1724677544357,0.00429592,2728.4,2728.3,1.10463]
[1724677544546,0.00429592,2728.4,2728.3,4.77023]
[1724677545357,0.00429592,2728.4,2728.3,14.83594814]
[1724677547848,0.36631,2729.3,2729.2,0.3663]
[1724677548359,0.36631,2729.2,2729.1,3.53631]
[1724677548749,0.3705127,2729.2,2729.1,3.53631]
[1724677549045,1.28214,2729.1,2729.0,0.0055061]
[1724677550446,0.36641,2728.5,2728.4,0.3664]
[1724677550650,0.36638,2728.7,2728.6,0.36638]
[1724677552046,0.36637,2728.8,2728.7,0.36637]
[1724677552464,0.3706,2728.9,2728.8,0.36636]
[1724677552465,0.73696,2728.9,2728.8,0.36636]
[1724677553048,0.0055061,2729.0,2728.9,0.36635]
[1724677553463,0.0055061,2729.0,2728.9,2.19811]
[1724677553755,0.0055061,2729.0,2728.9,5.86291]
[1724677554562,0.0055061,2729.0,2728.9,4.03115]
[1724677555061,0.0055061,2729.0,2728.9,4.94703]
[1724677555564,0.0055061,2729.0,2728.9,5.30333]
[1724677556062,0.0055061,2729.0,2728.9,4.38745]
[1724677556256,0.0055061,2729.0,2728.9,0.72265]
[1724677557156,0.0055061,2729.0,2728.9,6.21921]
[1724677557764,0.0055061,2729.0,2728.9,4.38745]
[1724677558756,0.0055061,2729.0,2728.9,4.76925]
[1724677558955,0.0055061,2729.0,2728.9,4.41295]
[1724677559655,0.3718461,2729.0,2728.9,0.74815]
[1724677560256,0.0055061,2729.0,2728.9,0.74815]
[1724677560656,0.3718461,2729.0,2728.9,0.36635]
[1724677560962,0.0055061,2729.0,2728.9,0.36635]
[1724677561264,0.0055061,2729.0,2728.9,4.94703]
[1724677561953,0.0055061,2729.0,2728.9,5.86291]
[1724677562561,0.0055061,2729.0,2728.9,4.94703]
[1724677562957,0.0042027,2729.2,2729.1,1.28213]
[1724677563166,0.0042027,2729.2,2729.1,4.45213]
[1724677563465,0.0042027,2729.2,2729.1,8.11613]
[1724677564056,0.0042027,2729.2,2729.1,16.93667192]
[1724677564466,0.3851,2729.7,2729.1,16.57035192]
[1724677564768,0.36626,2729.6,2729.5,3.17]
[1724677564959,0.3663,2729.3,2729.2,3.17]
[1724677565154,4.0483,2729.7,2729.0,0.7225]
[1724677565155,0.3651,2729.5,2729.0,0.7225]
[1724677565358,0.36631,2729.3,2729.2,0.3663]
[1724677565560,0.36632,2729.2,2729.1,0.36632]
[1724677565766,0.3795,2729.2,2729.1,0.36632]
[1724677566471,0.74581,2729.2,2729.1,0.36632]
[1724677566668,0.3795,2729.2,2729.1,0.36632]
[1724677568657,0.00292981,2729.3,2729.2,2.19787]
[1724677568858,0.00292981,2729.3,2729.2,9.03187]
[1724677569072,0.00292981,2729.3,2729.2,18.90860081]
[1724677569470,0.00292981,2729.3,2729.2,17.0452799]
[1724677570671,0.00292981,2729.3,2729.2,12.0452799]
[1724677571267,0.00292981,2729.3,2729.2,11.1294999]
[1724677571462,0.36922981,2729.3,2729.2,3.17]
[1724677571664,0.36922981,2729.3,2729.0,0.7225]
[1724677571665,0.36632,2729.2,2729.0,0.36633]
[1724677571863,0.36632,2729.1,2729.0,0.36633]
[1724677572268,0.36634,2729.0,2728.9,3.17]
[1724677572465,0.74204,2729.0,2728.9,3.53635]
[1724677573062,0.3757,2729.0,2728.9,3.53635]
[1724677573274,0.3639,2729.2,2729.1,0.36632]
[1724677573569,4.0279,2729.2,2728.9,3.17]
[1724677573758,4.0279,2729.2,2728.6,0.7655]
[1724677573759,0.91587,2729.0,2728.6,0.7655]
[1724677573963,1.2797,2729.2,2728.9,0.36635]
[1724677574170,0.36634,2729.0,2728.9,0.36635]
[1724677574568,0.3639,2729.2,2729.1,0.36632]
[1724677574763,0.73022,2729.2,2729.0,0.36633]
[1724677574964,4.39422,2729.2,2728.8,3.17]
[1724677575168,0.73022,2729.2,2729.0,0.36632]
[1724677575668,4.39422,2729.2,2729.0,0.36632]
[1724677575871,4.39422,2729.2,2728.8,3.17]
[1724677576175,0.73022,2729.2,2729.1,0.36632]
[1724677576365,0.3639,2729.2,2729.1,0.36632]
[1724677576561,4.0279,2729.2,2729.1,0.36632]
[1724677576765,0.3639,2729.2,2729.1,0.36632]
[1724677577271,0.3639,2729.2,2729.1,3.53632]
[1724677577473,0.00292981,2729.3,2729.2,0.36631]
[1724677577777,0.00292981,2729.3,2729.2,0.72281]
[1724677577974,0.00292981,2729.3,2729.2,4.38681]
[1724677579079,0.00292981,2729.3,2729.2,0.72281]
[1724677579574,0.36922981,2729.3,2729.2,0.72281]
[1724677579774,0.00292981,2729.3,2729.2,0.72281]
[1724677580870,0.00292981,2729.3,2729.2,10.11698096]
[1724677581276,0.00292981,2729.3,2729.2,16.94894482]
[1724677581472,0.36624,2729.7,2729.6,0.36625]
[1724677581968,0.36626,2729.6,2729.5,3.53626]
[1724677582272,0.36626,2729.6,2729.3,0.36629]
[1724677582273,0.36628,2729.4,2729.3,0.36629]
[1724677582469,0.3671,2729.5,2729.2,3.5265]
[1724677582668,0.36629,2729.4,2729.3,0.36629]
[1724677583374,0.3671,2729.5,2729.2,3.5265]
[1724677583572,0.73338,2729.5,2729.4,0.36628]